bitfinex/quotes_BTCUSD_20250115
["timestamp","ask_amount","ask_price","bid_price","bid_amount"]
[1736935321461,0.173,96882.0,96881.0,0.001]
[1736935321873,0.00449387,96901.0,96882.0,0.206436]
[1736935321874,0.1,96894.0,96882.0,0.206436]
[1736935322084,0.1,96894.0,96881.0,0.0424017]
[1736935322085,0.003,96882.0,96881.0,0.0424017]
[1736935322739,0.003,96882.0,96881.0,0.001]
[1736935323342,0.023,96893.0,96881.0,0.001]
[1736935323908,0.023,96893.0,96887.0,0.206424]
[1736935325821,0.023,96893.0,96887.0,0.412849]
[1736935326019,0.023,96893.0,96887.0,0.206424]
[1736935326260,0.00049387,96901.0,96897.0,0.412808]
[1736935326493,0.00049387,96901.0,96899.0,0.2064]
[1736935326736,0.00049387,96901.0,96900.0,0.00103192]
[1736935327218,0.00049387,96901.0,96899.0,0.2064]
[1736935327472,0.00049387,96901.0,96900.0,0.10422692]
[1736935327721,0.00049387,96901.0,96899.0,0.2064]
[1736935327964,0.00049387,96901.0,96900.0,0.002]
[1736935328197,0.00049387,96901.0,96900.0,0.00303188]
[1736935328442,0.00049387,96901.0,96900.0,0.00103188]
[1736935328720,0.00049387,96901.0,96886.0,0.206427]
[1736935329028,0.00149387,96901.0,96890.0,0.12274989]
[1736935329175,0.00149387,96901.0,96899.0,0.2064]
[1736935329384,0.00049387,96901.0,96899.0,0.516]
[1736935329590,0.00149387,96901.0,96899.0,0.516]
[1736935329786,0.00136966,96901.0,96900.0,0.00103189]
[1736935330013,0.00036966,96901.0,96900.0,0.38317528]
[1736935330216,0.00036966,96901.0,96900.0,0.53607031]
[1736935330609,0.00136966,96901.0,96900.0,0.53607031]
[1736935331015,0.00136966,96901.0,96900.0,0.53807031]
[1736935331214,0.22859658,96901.0,96900.0,0.3116]
[1736935331418,0.12436966,96901.0,96900.0,0.3116]
[1736935332046,0.12336966,96901.0,96900.0,0.3116]
[1736935332248,0.12436966,96901.0,96900.0,0.3116]
[1736935332613,0.37336966,96901.0,96900.0,0.3116]
[1736935333047,0.37336966,96901.0,96900.0,0.3096]
[1736935333256,0.37436966,96901.0,96900.0,0.3096]
[1736935333657,0.37759658,96901.0,96900.0,0.3096]
[1736935333861,0.47759658,96901.0,96900.0,0.3096]
[1736935334099,0.47859658,96901.0,96900.0,0.3096]
[1736935334912,0.47859658,96901.0,96900.0,0.3106]
[1736935335294,0.47759658,96901.0,96900.0,0.3106]
[1736935335496,0.37759658,96901.0,96900.0,0.3106]
[1736935335700,0.47759658,96901.0,96900.0,0.3106]
[1736935336281,0.48059658,96901.0,96900.0,0.3106]
[1736935336487,0.47759658,96901.0,96900.0,0.3096]
[1736935336887,0.47959658,96901.0,96900.0,0.3096]
[1736935337295,0.47859658,96901.0,96900.0,0.3096]
[1736935338320,0.47759658,96901.0,96900.0,0.3096]
[1736935338567,0.47859658,96901.0,96900.0,0.3096]
[1736935340974,0.47859658,96901.0,96900.0,0.3104541]
[1736935341177,0.4803902,96901.0,96900.0,0.3104541]
[1736935344515,0.4823902,96901.0,96900.0,0.3104541]
[1736935345314,0.3823902,96901.0,96900.0,0.3104541]
[1736935345520,0.17816328,96901.0,96900.0,0.3104541]
[1736935345738,0.17816328,96901.0,96900.0,0.5168521]
[1736935345950,0.17816328,96901.0,96900.0,0.61823861]
[1736935345951,0.00316328,96901.0,96900.0,0.61823861]
[1736935347009,0.00216328,96901.0,96900.0,0.61823861]
[1736935347217,0.00316328,96901.0,96900.0,0.61823861]
[1736935347426,0.00316328,96901.0,96900.0,0.64915463]
[1736935347636,0.00416328,96901.0,96900.0,0.64915463]
[1736935348246,0.00412328,96901.0,96900.0,0.64915463]
[1736935348451,0.00312328,96901.0,96900.0,0.64915463]
[1736935348661,0.00312328,96901.0,96900.0,0.65041732]
[1736935349037,0.00212328,96901.0,96900.0,0.65041732]
[1736935349279,0.00312328,96901.0,96900.0,0.65241732]
[1736935349497,0.00312328,96901.0,96900.0,0.73031732]
[1736935349706,0.1,96933.0,96926.0,0.206342]
[1736935349908,0.1,96933.0,96928.0,0.0497]
[1736935350115,0.1,96933.0,96928.0,0.35921]
[1736935350349,0.1,96938.0,96935.0,0.206323]
[1736935350552,0.1,96938.0,96935.0,0.515813]
[1736935351562,0.1,96936.0,96935.0,0.515813]
[1736935351747,0.123,96936.0,96935.0,0.30953961]
[1736935352170,0.123,96936.0,96935.0,0.51586261]
[1736935352794,0.57722692,96936.0,96935.0,0.30953961]
[1736935353041,0.57722692,96936.0,96900.0,0.0008541]
[1736935353216,0.123,96901.0,96900.0,0.00090372]
[1736935353416,0.47722692,96901.0,96900.0,0.00090372]
[1736935355854,0.48322692,96901.0,96900.0,0.00190372]
[1736935356050,0.48522692,96901.0,96900.0,0.00190372]
[1736935357289,0.48322692,96901.0,96900.0,0.00190372]
[1736935357916,0.47722692,96901.0,96900.0,0.00090372]
[1736935358064,0.47722692,96901.0,96900.0,0.00190372]
[1736935358265,0.48322692,96901.0,96900.0,0.00190372]
[1736935358477,0.47722692,96901.0,96900.0,0.00090372]
[1736935358686,0.48522692,96901.0,96900.0,0.00190372]
[1736935359315,0.38322692,96901.0,96900.0,0.00190372]
[1736935359579,0.37922692,96901.0,96900.0,0.00090372]
[1736935359749,0.47922692,96901.0,96900.0,0.00090372]
[1736935359947,0.48522692,96901.0,96900.0,0.00190372]
[1736935360499,0.48322692,96901.0,96900.0,0.00190372]
[1736935360670,0.48522692,96901.0,96900.0,0.00190372]
[1736935361656,0.48522692,96901.0,96900.0,0.00090372]
[1736935361860,0.47922692,96901.0,96900.0,0.00090372]
[1736935362061,0.48522692,96901.0,96900.0,0.00190372]
[1736935362271,0.48322692,96901.0,96900.0,0.00090372]
[1736935362462,0.38322692,96901.0,96900.0,0.00090372]
[1736935362803,0.38422692,96901.0,96900.0,0.00090372]
[1736935362957,0.38522692,96901.0,96900.0,0.00090372]
[1736935363355,0.38422692,96901.0,96900.0,0.00090372]
[1736935363783,0.38422692,96901.0,96900.0,0.00190372]
[1736935364137,0.18,96901.0,96900.0,0.05080372]
[1736935364343,0.173,96901.0,96900.0,0.05080372]
[1736935364753,0.173,96901.0,96900.0,0.05180372]
[1736935364979,0.15,96901.0,96900.0,0.05080372]
[1736935365183,0.1,96914.0,96902.0,0.206394]
[1736935365388,0.09146956,96919.0,96902.0,0.206394]
[1736935365389,0.1,96915.0,96912.0,0.206372]
[1736935365582,0.1,96907.0,96903.0,0.0807]
[1736935365925,0.173,96906.0,96903.0,0.0807]
[1736935366127,0.123,96904.0,96903.0,0.0807]
[1736935366894,0.123,96904.0,96903.0,0.32088167]
[1736935367331,0.123,96904.0,96903.0,0.287091]
[1736935367568,0.123,96904.0,96903.0,0.0807]
[1736935368758,0.123,96904.0,96903.0,0.0817]
[1736935368964,0.023,96904.0,96903.0,0.0817]
[1736935369170,0.22722692,96904.0,96903.0,0.001]
[1736935369525,0.22722692,96904.0,96903.0,0.002]
[1736935369756,0.37722692,96904.0,96903.0,0.002]
[1736935369974,0.47722692,96904.0,96903.0,0.002]
[1736935370342,0.47722692,96904.0,96903.0,0.001]
[1736935370864,0.47822692,96904.0,96903.0,0.001]
[1736935371445,0.173,96903.0,96900.0,0.00090372]
[1736935371646,0.173,96901.0,96900.0,0.00090372]
[1736935371846,0.27722692,96901.0,96900.0,0.00090372]
[1736935373005,0.28022692,96901.0,96900.0,0.00090372]
[1736935374377,0.28122692,96901.0,96900.0,0.00090372]
[1736935374834,0.027,96901.0,96900.0,0.00090372]
[1736935375973,0.026,96901.0,96900.0,0.00090372]
[1736935376173,0.023,96901.0,96900.0,0.00190372]
[1736935376598,0.023,96901.0,96900.0,0.00290372]
[1736935378734,0.47722692,96901.0,96900.0,0.00290372]
[1736935379803,0.47722692,96901.0,96900.0,0.00190372]
[1736935380228,0.47822692,96901.0,96900.0,0.00190372]
[1736935380613,0.47722692,96901.0,96900.0,0.00190372]
[1736935381040,0.47822692,96901.0,96900.0,0.00090372]
[1736935381246,0.48122692,96901.0,96900.0,0.00090372]
[1736935381668,0.47822692,96901.0,96900.0,0.00090372]
[1736935381878,0.48322692,96901.0,96900.0,0.00090372]
[1736935382551,0.48222692,96901.0,96900.0,0.00090372]
[1736935382760,0.48322692,96901.0,96900.0,0.00090372]
[1736935383197,0.48522692,96901.0,96900.0,0.00090372]
[1736935383576,0.48622692,96901.0,96900.0,0.00090372]
[1736935385514,0.38622692,96901.0,96900.0,0.00090372]
[1736935386127,0.48622692,96901.0,96900.0,0.00090372]
[1736935386344,0.38622692,96901.0,96900.0,0.00090372]
[1736935386542,0.48622692,96901.0,96900.0,0.00090372]
[1736935386930,0.38622692,96901.0,96900.0,0.00090372]
[1736935387748,0.47822692,96901.0,96900.0,0.00090372]
[1736935388151,0.48122692,96901.0,96900.0,0.00090372]
[1736935388529,0.47822692,96901.0,96900.0,0.00090372]
[1736935389959,0.47722692,96901.0,96900.0,0.00090372]
[1736935390342,0.47822692,96901.0,96900.0,0.00090372]
[1736935390921,0.47722692,96901.0,96900.0,0.00090372]
[1736935391123,0.47722692,96901.0,96900.0,0.00190372]
[1736935391748,0.273,96901.0,96900.0,0.00190372]
[1736935392350,0.173,96901.0,96900.0,0.00190372]
[1736935392752,0.173,96901.0,96900.0,0.08150372]
[1736935393081,0.023,96901.0,96900.0,0.20057529]
[1736935393308,0.023,96901.0,96900.0,0.13050372]
[1736935393730,0.1,96914.0,96913.0,0.20637]
[1736935393940,0.1,96918.0,96914.0,0.206368]
[1736935394153,0.1,96918.0,96914.0,0.412736]
[1736935394558,0.1,96920.0,96914.0,0.412736]
[1736935394760,0.123,96920.0,96919.0,0.255357]
[1736935394930,0.023,96920.0,96919.0,0.255357]
[1736935395612,0.1,96927.0,96926.0,0.206342]
[1736935395817,0.35,96927.0,96926.0,0.206342]
[1736935396416,0.023,96925.0,96923.0,0.206347]
[1736935396619,0.023,96921.0,96920.0,0.0796]
[1736935398382,0.023,96921.0,96920.0,0.0806]
[1736935399832,0.023,96921.0,96920.0,0.0816]
[1736935401049,0.023,96921.0,96920.0,0.0824533]
[1736935403343,0.43357992,96921.0,96920.0,0.0028533]
[1736935403547,0.68357992,96921.0,96920.0,0.0028533]
[1736935404343,0.68357992,96921.0,96920.0,0.0018533]
[1736935404489,0.68357992,96921.0,96920.0,0.0008533]
[1736935405350,0.68457992,96921.0,96920.0,0.0008533]
[1736935405539,0.68357992,96921.0,96920.0,0.0008533]
[1736935405947,0.68757992,96921.0,96920.0,0.0008533]
[1736935406311,0.68857992,96921.0,96920.0,0.0008533]
[1736935408088,0.38222692,96921.0,96920.0,0.0008533]
[1736935408431,0.278,96921.0,96920.0,0.0008533]
[1736935408831,0.278,96921.0,96920.0,0.0804533]
[1736935409682,0.378,96921.0,96920.0,0.0804533]
[1736935409914,0.178,96921.0,96920.0,0.0804533]
[1736935410121,0.028,96921.0,96920.0,0.0804533]
[1736935411083,0.001,96921.0,96920.0,0.0804533]
[1736935411510,0.001,96921.0,96920.0,0.1294533]
[1736935411823,0.003,96921.0,96920.0,0.1294533]
[1736935412279,0.002,96921.0,96920.0,0.1294533]
[1736935412697,0.025,96921.0,96920.0,0.1294533]
[1736935413080,0.002,96921.0,96920.0,0.1294533]
[1736935413286,0.002,96921.0,96920.0,0.20515789]
[1736935414110,0.002,96921.0,96920.0,0.20715789]
[1736935414324,0.023,96932.0,96931.0,0.206332]
[1736935415374,0.023,96934.0,96933.0,0.206328]
[1736935415716,0.023,96934.0,96933.0,0.254028]
[1736935415931,0.023,96934.0,96933.0,0.3282575]
[1736935417364,0.023,96934.0,96933.0,0.4038575]
[1736935417697,0.025,96934.0,96933.0,0.4038575]
[1736935417879,0.023,96934.0,96933.0,0.4038575]
[1736935418216,0.023,96934.0,96933.0,0.3738575]
[1736935418426,0.023,96934.0,96933.0,0.3758575]
[1736935418631,0.023,96934.0,96933.0,0.3738575]
[1736935418839,0.023,96934.0,96933.0,0.3808575]
[1736935419016,0.024,96934.0,96933.0,0.3808575]
[1736935419312,0.024,96934.0,96933.0,0.3798575]
[1736935419652,0.024,96934.0,96933.0,0.3828575]
[1736935425165,0.024,96934.0,96933.0,0.6923475]
[1736935426779,0.001,96934.0,96933.0,0.6923475]
[1736935428583,0.001,96934.0,96933.0,0.6863475]
[1736935428790,0.00179193,96935.0,96933.0,0.6863475]
[1736935429022,0.00179193,96935.0,96934.0,0.10422692]
[1736935429221,0.00179193,96935.0,96934.0,0.41371692]
[1736935429431,0.00179193,96935.0,96934.0,0.30949]
[1736935431115,0.00279193,96935.0,96934.0,0.31449]
[1736935431759,0.02579193,96935.0,96934.0,0.31449]
[1736935431932,0.02579193,96935.0,96934.0,0.31749]
[1736935434103,0.02579193,96935.0,96934.0,0.4204685]
[1736935435066,0.00279193,96935.0,96934.0,0.4204685]
[1736935435843,0.02579193,96935.0,96934.0,0.31749]
[1736935441234,0.00279193,96935.0,96934.0,0.31749]
[1736935441452,0.00279193,96935.0,96934.0,0.39929]
[1736935441820,0.00279193,96935.0,96934.0,0.50351692]
[1736935442432,0.00279193,96935.0,96934.0,0.55041692]
[1736935442632,5e-07,96936.0,96935.0,0.750923]
[1736935442834,0.09146956,96968.0,96938.0,0.0469]
[1736935443070,0.09146956,96968.0,96967.0,0.334955]
[1736935443237,0.09146956,96968.0,96967.0,0.644335]
[1736935443447,0.15,96970.0,96967.0,0.85059]
[1736935443674,0.00014826,96970.0,96969.0,0.206251]
[1736935443876,0.00014826,96970.0,96969.0,0.515631]
[1736935444803,0.02614826,96970.0,96969.0,0.515631]
[1736935445050,0.00314826,96970.0,96969.0,0.515631]
[1736935445273,0.00014826,96970.0,96969.0,0.515631]
[1736935445416,0.01114826,96970.0,96969.0,0.62085792]
[1736935446590,0.00314826,96970.0,96969.0,0.61985792]
[1736935446717,0.00014826,96970.0,96969.0,0.61985792]
[1736935446917,0.00214826,96970.0,96969.0,0.61985792]
[1736935447576,0.00014826,96970.0,96969.0,0.61985792]
[1736935447979,0.00314826,96970.0,96969.0,0.61985792]
[1736935448341,0.00114826,96970.0,96969.0,0.61985792]
[1736935456200,0.00014826,96970.0,96969.0,0.62185792]
[1736935456408,0.00014826,96970.0,96969.0,0.70415792]
[1736935456945,0.00014826,96970.0,96969.0,0.80838484]
[1736935457157,0.00014826,96970.0,96969.0,0.85538484]
[1736935457398,0.00014826,96970.0,96969.0,0.87465053]
[1736935458346,0.00179362,96997.0,96996.0,0.334494]
[1736935458544,0.00179362,96997.0,96996.0,0.643784]
[1736935460019,0.00779362,96997.0,96996.0,0.643784]
[1736935460429,0.00379362,96997.0,96996.0,0.643784]
[1736935460836,0.00479362,96997.0,96996.0,0.643784]
[1736935461049,0.00479362,96997.0,96996.0,0.74801092]
[1736935461254,0.00179362,96997.0,96996.0,0.74801092]
[1736935462262,0.00179362,96997.0,96996.0,0.85223784]
[1736935462574,0.00179362,96997.0,96996.0,0.87547317]
[1736935463431,0.00179257,97033.0,97025.0,0.334432]
[1736935463803,0.00219771,97026.0,97025.0,0.6770752]
[1736935464734,0.00219771,97026.0,97025.0,0.6780752]
[1736935465153,0.00219771,97026.0,97025.0,0.68735639]
[1736935465790,0.00219771,97026.0,97025.0,0.79158331]
[1736935469659,0.00219771,97026.0,97025.0,0.68735639]
[1736935470058,0.00207355,97026.0,97025.0,0.68735639]
[1736935472837,0.00207355,97026.0,97025.0,0.6780752]
[1736935481733,0.00207355,97026.0,97025.0,0.6789277]
[1736935488466,0.00207355,97026.0,97025.0,0.6319277]
[1736935489704,0.00307355,97026.0,97025.0,0.6319277]
[1736935490116,0.43120355,97026.0,97025.0,0.3110525]
[1736935490337,0.68543047,97026.0,97025.0,0.3110525]
[1736935490494,0.71951337,97026.0,97025.0,0.3110525]
[1736935490696,0.68643047,97026.0,97025.0,0.3110525]
[1736935491078,0.68643047,97026.0,97025.0,0.3100525]
[1736935491079,0.68543047,97026.0,97025.0,0.3100525]
[1736935491521,0.37607355,97026.0,97025.0,0.3100525]
[1736935491698,0.37507355,97026.0,97025.0,0.3100525]
[1736935492134,0.38107355,97026.0,97025.0,0.3110525]
[1736935492338,0.38107355,97026.0,97025.0,0.3100525]
[1736935492498,0.38407355,97026.0,97025.0,0.3100525]
[1736935492900,0.38107355,97026.0,97025.0,0.3100525]
[1736935493710,0.38607355,97026.0,97025.0,0.3100525]
[1736935493920,0.38807355,97026.0,97025.0,0.3100525]
[1736935494321,0.38607355,97026.0,97025.0,0.3100525]
[1736935495725,0.38807355,97026.0,97025.0,0.3100525]
[1736935500919,0.38807355,97026.0,97025.0,0.3914525]
[1736935501125,0.28807355,97026.0,97025.0,0.3914525]
[1736935501737,0.13807355,97026.0,97025.0,0.3914525]
[1736935501961,0.01507355,97026.0,97025.0,0.3914525]
[1736935502313,0.01507355,97026.0,97025.0,0.4391525]
[1736935502531,0.01507355,97026.0,97025.0,0.44858807]
[1736935502919,0.01307355,97026.0,97025.0,0.55281499]
[1736935503292,0.01307355,97026.0,97025.0,0.55381499]
[1736935503710,0.01307355,97026.0,97025.0,0.54437942]
[1736935504057,0.00207355,97026.0,97025.0,0.54437942]
[1736935504216,0.00207355,97026.0,97025.0,0.54537942]
[1736935514117,0.00207355,97026.0,97025.0,0.64960634]
[1736935517515,0.00207355,97026.0,97025.0,0.64860634]
[1736935517725,0.00307355,97026.0,97025.0,0.55237942]
[1736935517927,0.00307355,97026.0,97025.0,0.3110525]
[1736935517928,0.12507355,97026.0,97025.0,0.3110525]
[1736935518257,0.37507355,97026.0,97025.0,0.3100525]
[1736935518425,0.47930047,97026.0,97025.0,0.3100525]
[1736935518670,0.47930047,97026.0,97025.0,0.3180525]
[1736935518996,0.49480351,97026.0,97025.0,0.3100525]
[1736935519197,0.51718337,97026.0,97025.0,0.3100525]
[1736935519371,0.52118337,97026.0,97025.0,0.3100525]
[1736935519668,0.48710047,97026.0,97025.0,0.3100525]
[1736935519894,0.48610047,97026.0,97025.0,0.3100525]
[1736935520108,0.48910047,97026.0,97025.0,0.3100525]
[1736935520348,0.48530047,97026.0,97025.0,0.3100525]
[1736935520516,0.38107355,97026.0,97025.0,0.3100525]
[1736935520849,0.23107355,97026.0,97025.0,0.3100525]
[1736935521050,0.22807355,97026.0,97025.0,0.3100525]
[1736935521263,0.03507355,97026.0,97025.0,0.3110525]
[1736935521462,0.01207355,97026.0,97025.0,0.3110525]
[1736935521635,0.00507355,97026.0,97025.0,0.3100525]
[1736935521866,0.01207355,97026.0,97025.0,0.3110525]
[1736935522070,0.01207355,97026.0,97025.0,0.49026945]
[1736935530303,0.01207355,97026.0,97025.0,0.59449637]
[1736935530635,0.01207355,97026.0,97025.0,0.64319637]
[1736935531407,0.00907355,97026.0,97025.0,0.64319637]
[1736935531615,0.00907355,97026.0,97025.0,0.64419637]
[1736935531817,0.00207355,97026.0,97025.0,0.64319637]
[1736935532219,0.00207355,97026.0,97025.0,0.64519637]
[1736935532418,0.00207355,97026.0,97025.0,0.64419637]
[1736935532957,0.00307355,97026.0,97025.0,0.65119637]
[1736935533163,0.00307355,97026.0,97025.0,0.64219637]
[1736935533460,0.00307355,97026.0,97025.0,0.64619637]
[1736935533890,0.00307355,97026.0,97025.0,0.65519637]
[1736935534094,0.00407355,97026.0,97025.0,0.65519637]
[1736935534593,0.00407355,97026.0,97025.0,0.65119637]
[1736935535098,0.00407355,97026.0,97025.0,0.65519637]
[1736935535299,0.00207355,97026.0,97025.0,0.64619637]
[1736935535472,0.00307355,97026.0,97025.0,0.65519637]
[1736935540044,0.00307355,97026.0,97025.0,1.19979637]
[1736935546682,0.00307355,97026.0,97025.0,1.29165108]
[1736935546888,5.5e-07,97026.0,97025.0,1.29165108]
[1736935547484,5.5e-07,97026.0,97025.0,1.19979637]
[1736935547912,5.5e-07,97026.0,97025.0,1.23194235]
[1736935549443,5.5e-07,97026.0,97025.0,1.19979637]
[1736935549648,5.5e-07,97026.0,97025.0,1.34979637]
[1736935549848,5.5e-07,97026.0,97025.0,1.38193249]
[1736935550372,5.5e-07,97026.0,97025.0,1.34979637]
[1736935552808,0.00179312,97026.0,97025.0,1.34979637]
[1736935553999,0.00179312,97026.0,97025.0,1.35583637]
[1736935554349,0.00179312,97026.0,97025.0,1.38797462]
[1736935558462,1.2e-07,97026.0,97025.0,1.38797462]
[1736935558815,1.2e-07,97026.0,97025.0,1.38193462]
[1736935559043,1.2e-07,97026.0,97025.0,1.38797462]
[1736935560933,0.00175458,97032.0,97025.0,1.33927462]
[1736935561153,0.00190336,97032.0,97031.0,0.328919]
[1736935561469,0.00190336,97032.0,97031.0,0.77446417]
[1736935561704,0.00190336,97032.0,97031.0,0.92446417]
[1736935562123,0.00290336,97032.0,97031.0,0.92446417]
[1736935562341,0.00179382,97035.0,97031.0,0.92446417]
[1736935562342,0.00179193,97065.0,97038.0,0.827704]
[1736935562688,0.00179193,97065.0,97038.0,1.28689092]
[1736935563136,0.00179193,97065.0,97038.0,1.31902917]
[1736935564001,0.00179193,97065.0,97038.0,1.32302917]
[1736935564226,0.00179193,97065.0,97038.0,1.56599368]
[1736935564426,0.00179193,97065.0,97038.0,1.56799368]
[1736935564765,0.00179193,97065.0,97038.0,1.57788539]
[1736935565005,0.00179193,97065.0,97038.0,1.4391478]
[1736935565201,0.00179193,97065.0,97038.0,1.5682518]
[1736935565384,0.00179193,97065.0,97040.0,0.2882]
[1736935565604,0.00179193,97065.0,97040.0,0.73374543]
[1736935566144,8.2e-07,97041.0,97040.0,0.88374543]
[1736935566986,8.2e-07,97041.0,97040.0,1.08280625]
[1736935567186,8.2e-07,97041.0,97040.0,1.08680625]
[1736935567442,8.2e-07,97041.0,97040.0,1.19203317]
[1736935567824,8.2e-07,97041.0,97040.0,1.14591426]
[1736935570083,8.2e-07,97041.0,97040.0,1.69051426]
[1736935570572,8.2e-07,97041.0,97040.0,1.72266765]
[1736935571273,8.2e-07,97041.0,97040.0,1.76878701]
[1736935572104,8.2e-07,97041.0,97040.0,1.73663317]
[1736935572304,8.2e-07,97041.0,97040.0,1.50540384]
[1736935572535,8.2e-07,97041.0,97040.0,1.53755652]
[1736935572774,6.4e-07,97048.0,97047.0,0.206085]
[1736935573035,4.6e-07,97050.0,97047.0,0.80679902]
[1736935573204,4.6e-07,97050.0,97048.0,0.10525708]
[1736935573421,4.6e-07,97050.0,97049.0,0.00604]
[1736935573663,4.6e-07,97050.0,97049.0,0.42041709]
[1736935573875,4.6e-07,97050.0,97049.0,0.62546792]
[1736935574084,3e-08,97061.0,97060.0,0.288158]
[1736935574289,3e-08,97061.0,97060.0,0.70147492]
[1736935576558,3e-08,97061.0,97060.0,0.70247492]
[1736935576773,3e-08,97061.0,97060.0,0.70147492]
[1736935577000,8.9e-07,97067.0,97064.0,0.206049]
[1736935577245,8.9e-07,97067.0,97065.0,0.20948382]
[1736935577445,5.6e-07,97067.0,97066.0,0.288145]
[1736935577597,5.6e-07,97067.0,97066.0,0.70144192]
[1736935578610,0.00179362,97072.0,97066.0,0.70144192]
[1736935578611,0.00153512,97072.0,97071.0,0.206034]
[1736935578795,0.00153512,97072.0,97071.0,0.62034082]
[1736935579173,0.00153512,97072.0,97071.0,1.26813784]
[1736935579745,0.00153512,97072.0,97071.0,1.27013784]
[1736935580643,0.00153512,97072.0,97071.0,1.36355794]
[1736935581458,0.00153512,97072.0,97071.0,1.27113784]
[1736935582222,0.00153512,97072.0,97071.0,1.30800429]
[1736935583194,0.00153512,97072.0,97071.0,1.27717784]
[1736935583382,0.00153512,97072.0,97071.0,1.28683444]
[1736935583794,0.00153512,97072.0,97071.0,1.28079444]
[1736935592282,0.00153512,97072.0,97071.0,1.17656752]
[1736935592590,0.00153512,97072.0,97071.0,1.062684]
[1736935592999,0.20153512,97072.0,97071.0,1.062684]
[1736935593203,0.22453512,97072.0,97071.0,0.31105]
[1736935593412,0.43056712,97072.0,97071.0,0.31105]
[1736935593628,0.69059404,97072.0,97071.0,0.30905]
[1736935593987,0.68859404,97072.0,97071.0,0.30905]
[1736935594403,0.69559404,97072.0,97071.0,0.31005]
[1736935595665,0.69359404,97072.0,97071.0,0.30905]
[1736935595819,0.68859404,97072.0,97071.0,0.30905]
[1736935596017,0.69159404,97072.0,97071.0,0.30905]
[1736935596403,0.68859404,97072.0,97071.0,0.30905]
[1736935596603,0.69359404,97072.0,97071.0,0.31005]
[1736935596824,0.69159404,97072.0,97071.0,0.30905]
[1736935597240,0.69159404,97072.0,97071.0,0.31005]
[1736935597241,0.69659404,97072.0,97071.0,0.31005]
[1736935601688,0.38676204,97072.0,97071.0,0.31005]
[1736935601888,0.48176204,97072.0,97071.0,0.30905]
[1736935602258,0.48676204,97072.0,97071.0,0.31005]
[1736935602458,0.47876204,97072.0,97071.0,0.30905]
[1736935602659,0.48176204,97072.0,97071.0,0.30905]
[1736935602858,0.48676204,97072.0,97071.0,0.30905]
[1736935603335,0.48376204,97072.0,97071.0,0.30905]
[1736935603532,0.48576204,97072.0,97071.0,0.30905]
[1736935607612,0.38153512,97072.0,97071.0,0.30905]
[1736935608053,0.58756712,97072.0,97071.0,0.30905]
[1736935608855,0.38153512,97072.0,97071.0,0.30905]
[1736935609649,0.48576204,97072.0,97071.0,0.30905]
[1736935613197,0.51984494,97072.0,97071.0,0.30905]
[1736935613419,0.61984494,97072.0,97071.0,0.30905]
[1736935614243,0.48576204,97072.0,97071.0,0.30905]
[1736935614454,0.38576204,97072.0,97071.0,0.30905]
[1736935614629,0.47876204,97072.0,97071.0,0.30905]
[1736935614851,0.48376204,97072.0,97071.0,0.30905]
[1736935615050,0.49276204,97072.0,97071.0,0.31005]
[1736935615248,0.47876204,97072.0,97071.0,0.30905]
[1736935615687,0.49176204,97072.0,97071.0,0.31005]
[1736935615917,0.49163805,97072.0,97071.0,0.30905]
[1736935616092,0.48763805,97072.0,97071.0,0.30905]
[1736935616295,0.49563805,97072.0,97071.0,0.31005]
[1736935616440,0.49863805,97072.0,97071.0,0.31005]
[1736935618145,0.49563805,97072.0,97071.0,0.31005]
[1736935618490,0.49863805,97072.0,97071.0,0.31005]
[1736935618756,0.48163805,97072.0,97071.0,0.30905]
[1736935618933,0.48963805,97072.0,97071.0,0.31005]
[1736935621539,0.38963805,97072.0,97071.0,0.31005]
[1736935621745,0.48963805,97072.0,97071.0,0.31005]
[1736935621916,0.33963805,97072.0,97071.0,0.31005]
[1736935622727,0.23541113,97072.0,97071.0,0.31005]
[1736935622933,0.21241113,97072.0,97071.0,0.31005]
[1736935623276,0.11241113,97072.0,97071.0,0.31005]
[1736935623489,0.21241113,97072.0,97071.0,0.34911417]
[1736935623668,0.01241113,97072.0,97071.0,0.34911417]
[1736935623820,0.01241113,97072.0,97071.0,0.47381417]
[1736935624794,0.00141113,97072.0,97071.0,0.47281417]
[1736935625003,0.00241113,97072.0,97071.0,0.47281417]
[1736935625218,0.00441113,97072.0,97071.0,0.47281417]
[1736935625374,0.00413814,97072.0,97071.0,0.47281417]
[1736935627970,0.10413814,97072.0,97071.0,0.47281417]
[1736935628250,0.12713814,97072.0,97071.0,0.38685]
[1736935628435,0.12713814,97072.0,97071.0,0.30905]
[1736935628646,0.22713814,97072.0,97071.0,0.30905]
[1736935631122,0.22613814,97072.0,97071.0,0.30905]
[1736935631624,0.22813814,97072.0,97071.0,0.30905]
[1736935631864,0.22613814,97072.0,97071.0,0.30905]
[1736935632142,0.22413814,97072.0,97071.0,0.30905]
[1736935632488,0.22813814,97072.0,97071.0,0.30905]
[1736935632894,0.22413814,97072.0,97071.0,0.30905]
[1736935633088,0.22613814,97072.0,97071.0,0.30905]
[1736935633290,0.22713814,97072.0,97071.0,0.30905]
[1736935633490,0.22513814,97072.0,97071.0,0.30905]
[1736935633711,0.22613814,97072.0,97071.0,0.30905]
[1736935634196,0.22613814,97072.0,97071.0,0.38912247]
[1736935634404,0.22613814,97072.0,97071.0,0.30905]
[1736935634632,0.22513814,97072.0,97071.0,0.31084172]
[1736935635030,0.22613814,97072.0,97071.0,0.31084172]
[1736935637946,0.22613814,97072.0,97071.0,0.00179172]
[1736935642739,0.58217014,97072.0,97071.0,0.00179172]
[1736935643691,0.68639706,97072.0,97071.0,0.00179172]
[1736935643904,0.93073289,97072.0,97071.0,0.00179172]
[1736935644107,0.9592666,97072.0,97071.0,0.00179172]
[1736935644535,0.9582666,97072.0,97071.0,0.00179172]
[1736935644757,0.9632666,97072.0,97071.0,0.00279172]
[1736935645071,0.9291837,97072.0,97071.0,0.00279172]
[1736935645249,0.9572666,97072.0,97071.0,0.00179172]
[1736935645655,0.9662666,97072.0,97071.0,0.00279172]
[1736935645877,0.9632666,97072.0,97071.0,0.00279172]
[1736935646233,0.9722666,97072.0,97071.0,0.00379172]
[1736935647032,0.9572666,97072.0,97071.0,0.00179172]
[1736935647307,0.9722666,97072.0,97071.0,0.00379172]
[1736935647708,0.9662666,97072.0,97071.0,0.00279172]
[1736935648131,0.9722666,97072.0,97071.0,0.00379172]
[1736935648526,0.9572666,97072.0,97071.0,0.00179172]
[1736935648725,0.2,97042.0,97041.0,0.03947514]
[1736935648944,0.2,97042.0,97041.0,0.03962381]
[1736935648945,0.223,97042.0,97041.0,0.03962381]
[1736935651054,0.224,97042.0,97041.0,0.03962381]